bitfinex-derivatives/quotes_ETHF0:USTF0_20260113
["timestamp","ask_amount","ask_price","bid_price","bid_amount"]
[1768320000678,0.13883368,3186.7,3184.3,0.11749343]
[1768320001079,0.00311296,3187.0,3184.3,0.11749343]
[1768320002272,1.09608456,3191.2,3184.5,0.11693655]
[1768320002468,0.15688,3189.3,3186.9,0.157]
[1768320002773,0.13883368,3189.1,3187.3,0.15697]
[1768320002974,0.13883368,3189.1,3187.9,0.15695]
[1768320003170,0.13883368,3189.1,3186.6,0.11611221]
[1768320003371,3.27404952,3189.1,3187.8,0.15695]
[1768320003776,0.00374334,3189.1,3187.8,0.15695]
[1768320003977,0.00374334,3189.1,3187.5,0.00470359]
[1768320004176,0.15684,3190.2,3187.5,0.16167359]
[1768320004371,3.141,3190.0,3187.5,0.00470359]
[1768320004572,3.141,3189.8,3187.6,0.15696]
[1768320004776,3.141,3189.8,3188.1,0.15694]
[1768320005175,3.14499255,3189.8,3188.1,0.15694]
[1768320005585,0.00399255,3189.8,3188.1,6.0]
[1768320006275,0.00399255,3189.8,3187.7,0.12058298]
[1768320006875,0.00399255,3189.8,3188.4,0.15692]
[1768320007476,0.00399255,3189.8,3187.7,0.12058298]
[1768320008081,1.09608456,3191.2,3189.5,0.15687]
[1768320008284,0.13881782,3191.1,3189.5,0.15687]
[1768320008774,0.13881782,3191.1,3189.6,0.15686]
[1768320008974,0.13881782,3191.1,3188.2,0.11447291]
[1768320009181,0.13881782,3190.9,3188.2,0.00285597]
[1768320009479,0.13881782,3190.7,3188.8,0.1569]
[1768320009679,0.13881782,3190.7,3188.3,0.11723033]
[1768320009880,0.14103279,3191.1,3189.5,0.15687]
[1768320010278,0.14103279,3191.1,3189.6,0.15686]
[1768320010473,0.00221497,3191.1,3188.8,0.11723033]
[1768320010877,0.13881782,3190.9,3188.3,0.15692]
[1768320011177,0.13881782,3190.2,3188.6,0.15691]
[1768320011380,0.13881782,3190.1,3188.7,0.15691]
[1768320011576,0.00470359,3189.9,3188.2,0.00285597]
[1768320011785,0.00470359,3189.9,3189.6,0.15686]
[1768320011973,0.13881782,3190.7,3189.6,0.15686]
[1768320012170,0.13881782,3190.7,3189.7,0.15686]
[1768320012371,3.27881782,3190.7,3189.7,0.15686]
[1768320012574,0.00221497,3191.1,3188.8,0.11303118]
[1768320012774,0.00221497,3191.1,3189.9,0.15685]
[1768320013177,0.14103279,3191.1,3189.9,0.15685]
[1768320014485,0.13881782,3190.9,3189.2,0.15688]
[1768320015279,0.13881782,3190.9,3188.7,0.00470359]
[1768320015479,0.00221497,3191.1,3189.7,0.15685]
[1768320015788,0.00221497,3191.1,3190.1,0.15684]
[1768320015974,0.00221497,3191.1,3189.3,0.15688]
[1768320016286,0.14009483,3192.3,3189.4,0.649]
[1768320016476,0.14009483,3192.3,3189.7,1.73989768]
[1768320016677,0.14009483,3192.3,3191.4,0.15677]
[1768320017186,0.00238753,3192.3,3191.5,0.15677]
[1768320017380,0.00238753,3192.3,3191.5,0.16147359]
[1768320017576,0.00238753,3192.3,3191.9,0.15675]
[1768320017781,0.14248236,3192.3,3191.5,0.00470359]
[1768320018180,0.14009483,3192.2,3190.4,0.15682]
[1768320018378,0.14009483,3191.8,3188.8,0.1569]
[1768320018578,0.14009483,3191.6,3189.4,0.15687]
[1768320018783,0.14009483,3191.6,3189.3,1.73989768]
[1768320018784,0.14009483,3191.6,3189.3,1.89677768]
[1768320018987,0.14009483,3191.6,3189.4,0.15687]
[1768320019178,6.14009483,3191.6,3189.4,0.15687]
[1768320019390,0.14009483,3191.4,3190.1,1.89673768]
[1768320019580,0.14009483,3191.4,3190.5,0.15682]
[1768320019885,0.00470359,3190.8,3190.5,0.15682]
[1768320020085,0.14009483,3191.4,3190.6,0.00470359]
[1768320020876,0.14009483,3191.4,3189.8,0.15685]
[1768320021080,0.14009483,3191.4,3189.6,0.00470359]
[1768320021287,0.14009483,3191.4,3190.2,0.15683]
[1768320021585,0.00238753,3192.3,3190.6,0.15681]
[1768320021586,0.14009483,3192.2,3190.6,0.15681]
[1768320022088,0.14009483,3192.2,3190.8,0.16150359]
[1768320022279,0.14009483,3192.2,3190.8,0.1568]
[1768320022478,0.14009483,3192.2,3190.6,0.15681]
[1768320022777,0.14009483,3192.2,3190.8,0.1568]
[1768320023177,0.14009483,3192.2,3190.8,0.00470359]
[1768320023374,0.14009483,3192.2,3191.1,0.15679]
[1768320023589,0.14009483,3192.2,3191.2,0.15678]
[1768320024487,0.14009483,3192.2,3190.0,1.73989768]
[1768320024488,6.14009483,3192.2,3190.4,0.15682]
[1768320024692,0.14009483,3192.0,3190.4,0.15682]
[1768320025585,0.14009483,3191.9,3189.7,0.15686]
[1768320025786,0.14009483,3191.8,3189.7,0.15686]
[1768320025983,0.14009483,3191.5,3189.7,0.15686]
[1768320026182,0.14009483,3191.2,3189.7,0.15686]
[1768320026377,0.14009483,3191.2,3189.8,0.15685]
[1768320026586,0.14009483,3191.2,3190.2,0.15683]
[1768320026789,0.14009483,3191.2,3189.7,0.00470359]
[1768320027284,0.14009483,3191.2,3189.9,0.00470359]
[1768320027592,0.14009483,3191.2,3189.7,0.15686]
[1768320027792,0.14009483,3191.2,3189.7,0.16156359]
[1768320028094,0.14009483,3191.2,3189.7,0.15686]
[1768320028586,0.14009483,3191.2,3189.7,0.16156359]
[1768320029382,0.14009483,3191.2,3189.8,0.00470359]
[1768320029782,0.14009483,3191.2,3189.7,0.15686]
[1768320030189,0.14009483,3191.2,3189.3,0.0024861]
[1768320030394,0.14009483,3191.2,3190.2,0.15683]
[1768320030590,0.14009483,3191.2,3189.4,1.73989768]
[1768320031296,0.14009483,3191.2,3189.6,0.00470359]
[1768320031591,0.14009483,3191.2,3189.9,0.15685]
[1768320031886,0.14009483,3191.2,3189.7,0.00470359]
[1768320032092,0.14009483,3191.2,3190.3,0.15683]
[1768320032294,0.14009483,3191.8,3190.8,0.1568]
[1768320033291,0.14009483,3191.8,3190.9,0.00470359]
[1768320034192,0.14009483,3191.8,3191.0,0.00470359]
[1768320034382,0.00238753,3192.3,3190.9,0.1568]
[1768320034690,0.14154817,3192.3,3190.1,1.73989768]
[1768320034883,0.14154817,3192.3,3190.5,0.00470359]
[1768320035087,0.14154817,3192.3,3190.6,1.73989768]
[1768320035290,0.14154817,3192.3,3190.4,0.15682]
[1768320035598,0.14154817,3192.3,3190.0,1.73989768]
[1768320035599,0.14154817,3192.3,3191.1,0.15679]
[1768320036591,0.14154817,3192.3,3190.4,0.15682]
[1768320036790,0.14154817,3192.3,3190.6,0.15681]
[1768320037387,0.14154817,3192.3,3190.8,0.1568]
[1768320037888,0.14154817,3192.3,3190.9,0.00470359]
[1768320038096,0.14154817,3192.3,3190.8,0.1568]
[1768320038289,0.14154817,3192.3,3190.9,0.00470359]
[1768320038682,0.13916064,3192.1,3190.1,0.15684]
[1768320038887,0.13916064,3191.8,3189.4,0.15687]
[1768320039097,0.13916064,3191.7,3189.4,0.15687]
[1768320039391,0.13916064,3191.4,3189.6,0.15686]
[1768320039598,0.13916064,3191.2,3189.6,0.15686]
[1768320040391,0.13916064,3191.1,3189.6,0.16156359]
[1768320041296,0.00470359,3191.9,3190.4,0.15682]
[1768320041493,0.00470359,3191.9,3190.5,0.15682]
[1768320041686,0.00470359,3191.9,3190.7,0.15681]
[1768320041886,0.00470359,3191.9,3190.0,1.74460127]
[1768320042090,6.00470359,3191.9,3189.3,0.0024861]
[1768320042291,1.544,3191.8,3189.6,0.00470359]
[1768320042491,0.00470359,3191.9,3190.0,0.15684]
[1768320042691,0.00470359,3191.9,3190.3,0.15683]
[1768320042992,0.00470359,3191.9,3190.5,0.15682]
[1768320043400,0.14386423,3191.9,3190.5,0.15682]
[1768320044094,0.14386423,3191.9,3190.7,0.00470359]
[1768320044300,0.13497899,3193.4,3192.2,1e-08]
[1768320044890,0.13497899,3193.4,3192.2,0.15673001]
[1768320045201,1.73989768,3195.7,3193.5,0.15667]
[1768320045392,3.141,3195.6,3193.5,0.15969293]
[1768320045592,1.73989768,3195.1,3193.5,0.00302293]
[1768320045797,3.141,3195.0,3193.5,0.00302293]
[1768320046295,3.141,3194.8,3193.5,0.00302293]
[1768320046497,0.13916064,3194.3,3192.2,1e-08]
[1768320047489,0.13916064,3194.3,3192.2,0.00242839]
[1768320047690,0.13592914,3194.3,3192.2,0.00242839]
[1768320048012,0.13592914,3194.3,3192.3,6.0]
[1768320048306,0.13592914,3194.3,3192.2,0.15916839]
[1768320049397,0.13592914,3194.3,3192.5,0.15672]
[1768320050007,0.13916064,3195.5,3193.4,0.15668]
[1768320051298,0.13916064,3195.5,3193.5,0.15667]
[1768320051498,0.13916064,3195.5,3193.6,0.15667]
[1768320051703,0.13916064,3195.5,3193.8,0.15666]
[1768320052292,0.13916064,3196.1,3194.0,1.73989768]
[1768320052609,1.08072917,3196.2,3193.9,0.15665]
[1768320052610,0.14207809,3195.7,3193.9,0.15665]
[1768320053506,0.14207809,3195.7,3194.3,0.15663]
[1768320054297,0.13916064,3195.6,3193.4,0.15667]
[1768320054698,0.13916064,3195.6,3193.1,1.73989768]
[1768320055006,0.13916064,3195.6,3193.7,0.15666]
[1768320055405,0.13916064,3195.6,3192.9,0.1567]
[1768320055707,0.13916064,3195.6,3193.1,0.15669]
[1768320055899,0.13916064,3195.6,3193.3,0.15668]
[1768320056101,0.13916064,3195.6,3193.4,0.15668]
[1768320056900,0.13916064,3195.6,3193.5,0.15667]
[1768320057095,0.13916064,3195.6,3193.1,1.73989768]
[1768320057308,0.13916064,3195.6,3194.1,0.15664]
[1768320057996,0.13916064,3195.6,3193.3,0.15668]
[1768320058496,0.13916064,3195.6,3193.4,0.15668]
[1768320058697,0.13916064,3195.6,3193.5,2.15667]
[1768320059505,0.13916064,3195.4,3193.5,2.0]
[1768320059703,0.13916064,3195.2,3193.5,1.85332923]
[1768320059897,4.674,3195.3,3193.5,1.01217561]
[1768320059898,0.15661,3194.7,3193.5,1.01217561]
[1768320060301,3.134,3195.3,3193.5,1.01217561]
[1768320060609,0.15655,3196.1,3193.6,0.13873497]
[1768320060811,4.21472917,3196.2,3194.1,0.13873497]
[1768320061012,0.15655,3196.1,3194.1,0.13873497]
[1768320061413,3.134,3196.0,3194.1,0.13873497]
[1768320061612,1.08072917,3196.2,3194.1,0.13873497]
[1768320061909,1.08072917,3196.2,3194.5,0.13873497]
[1768320062107,1.08072917,3196.2,3194.5,0.14181853]
[1768320062307,3.141,3196.1,3194.5,0.00308356]
[1768320062699,1.08072917,3196.2,3194.5,0.14181853]
[1768320063305,4.22172917,3196.2,3194.5,0.00308356]
[1768320063908,4.22172917,3196.2,3194.5,0.14181853]
[1768320064216,1.08072917,3196.2,3194.5,0.14181853]
[1768320065110,0.08072917,3196.2,3194.8,0.13875021]
[1768320066016,0.08327834,3196.2,3194.8,0.13875021]
[1768320066810,0.08327834,3196.2,3194.9,0.13875021]
[1768320067311,3.133,3197.4,3195.2,0.13875021]
[1768320067504,3.133,3197.4,3195.5,0.13875021]
[1768320067703,3.133,3197.4,3195.7,0.13875021]
[1768320067907,3.133,3197.4,3195.6,0.15657]
[1768320067908,1.539,3197.8,3196.0,0.13875021]
[1768320068114,1.52902865,3197.7,3196.0,0.13875021]
[1768320068311,0.00232677,3197.7,3196.0,0.13875021]
[1768320068911,1.52902865,3197.6,3196.0,0.13875021]
[1768320069117,1.52902865,3197.6,3195.3,0.13875021]
[1768320069414,4.67235542,3197.7,3195.3,0.13875021]
[1768320069714,4.67235542,3197.7,3195.3,0.29533021]
[1768320069914,9.34335542,3197.7,3195.4,0.13875021]
[1768320070111,1.52902865,3197.3,3195.4,0.13875021]
[1768320070312,4.67002865,3197.6,3195.4,0.13875021]
[1768320070811,0.00232677,3197.7,3195.8,0.13875021]
[1768320071015,0.00232677,3197.7,3196.8,0.13875021]
[1768320071216,0.15639,3199.4,3196.8,0.13875021]
[1768320071413,0.15639,3199.4,3195.3,0.25673233]
[1768320071414,1.333,3199.5,3197.2,0.13875021]
[1768320071611,0.07847022,3199.5,3197.2,0.13875021]
[1768320071819,0.15637,3199.6,3197.2,0.13875021]
[1768320072015,0.25600219,3199.6,3197.2,0.13875021]
[1768320072215,0.00469615,3198.7,3197.2,0.14129959]
[1768320072719,6.00469615,3198.7,3197.2,0.00254938]
[1768320072919,0.00469615,3198.7,3197.2,0.00254938]
[1768320073621,1.5337248,3198.7,3197.2,0.00254938]
[1768320073822,0.00469615,3198.7,3197.2,0.00254938]
[1768320074211,1.52902865,3198.5,3197.2,0.00254938]
[1768320074415,1.52902865,3198.3,3196.0,0.13875021]
[1768320075018,1.52902865,3197.9,3196.0,0.13875021]
[1768320075226,1.52902865,3197.1,3194.8,0.13875021]
[1768320075423,1.52902865,3195.9,3193.6,0.29542021]
[1768320075622,1.52902865,3195.5,3193.6,0.13875021]
[1768320075821,1.52902865,3195.1,3193.0,0.1567]
[1768320076022,1.52902865,3194.9,3192.9,0.1444714]
[1768320076321,1.52902865,3193.8,3192.2,1e-08]
[1768320076514,0.00469615,3194.4,3192.5,0.1444714]
[1768320076719,0.00469615,3194.4,3193.6,0.00236938]
[1768320076919,0.00469615,3194.4,3192.6,0.1444714]
[1768320077321,0.00469615,3194.4,3192.6,0.14832436]
[1768320077515,0.00469615,3194.4,3192.8,1.52902865]
[1768320077710,0.00469615,3194.4,3193.2,1.52902865]
[1768320077923,0.00469615,3194.4,3193.3,1.67350005]
[1768320078323,0.00469615,3194.4,3193.3,0.1444714]
[1768320078522,0.00469615,3194.4,3193.0,0.15669]
[1768320079122,0.00469615,3194.4,3193.4,1.67350005]
[1768320079420,0.00469615,3194.4,3193.5,0.1444714]
[1768320079728,0.00403066,3194.9,3193.5,0.1444714]
[1768320080717,0.00403066,3194.9,3192.9,0.1444714]
[1768320080919,3.133,3194.8,3192.9,0.1444714]
[1768320081224,1.52902865,3194.2,3192.6,0.00385296]
[1768320081423,1.52902865,3193.8,3192.6,0.00385296]
[1768320081732,1.52902865,3193.4,3192.2,1e-08]
[1768320082025,3.133,3193.5,3192.2,1e-08]
[1768320082417,1.536,3193.8,3192.2,1e-08]
[1768320082617,7.52902865,3194.2,3192.2,0.00339241]
[1768320082819,1.52902865,3193.8,3192.2,0.00339241]
[1768320083019,3.133,3193.7,3192.2,0.00339241]
[1768320084217,40.8,3194.6,3192.2,0.00339241]
[1768320084421,0.08630233,3194.9,3192.2,0.00339241]
[1768320084422,1.52902865,3194.3,3192.2,0.30459381]
[1768320084622,1.52902865,3193.9,3192.2,0.30459381]
[1768320085123,1.52902865,3194.4,3192.2,0.30459381]
[1768320085315,1.52902865,3194.4,3192.7,0.1444714]
[1768320085316,1.245,3194.3,3192.7,0.1444714]
[1768320085520,0.00403066,3194.9,3193.1,0.1444714]
[1768320085717,0.00403066,3194.9,3193.3,0.3011514]
[1768320085921,0.00403066,3194.9,3193.4,0.1444714]
[1768320086318,1.52902865,3194.6,3192.7,0.1444714]
[1768320086723,4.66202865,3194.6,3192.7,0.1444714]
[1768320087028,7.80302865,3194.6,3192.7,0.1444714]
[1768320087532,0.00403066,3194.9,3192.2,0.00339241]
[1768320087533,0.00403066,3194.9,3193.5,0.1444714]
[1768320087826,0.08163077,3196.4,3192.2,0.00339241]
[1768320087827,1.52902865,3196.7,3194.2,0.1444714]
[1768320088027,4.66202865,3196.7,3194.4,0.1444714]
[1768320088226,1.52902865,3196.1,3194.4,0.1444714]
[1768320088525,3.06502865,3196.8,3194.5,0.1444714]
[1768320088725,6.274,3196.7,3194.5,0.1468528]
[1768320089127,0.00253828,3196.8,3195.2,0.1444714]
[1768320089630,0.00253828,3196.8,3195.8,0.1444714]
[1768320089926,1.52902865,3198.5,3196.2,0.1444714]
[1768320090428,1.52902865,3197.7,3195.6,3.2774714]
[1768320090731,1.52902865,3197.6,3195.6,0.1444714]
[1768320090932,0.00308362,3197.7,3196.0,0.1444714]
[1768320091324,0.00308362,3197.7,3196.3,0.1444714]
[1768320091531,0.00308362,3197.7,3196.3,0.3010014]
[1768320091833,0.00308362,3197.7,3196.4,0.1444714]
[1768320092730,1.52902865,3197.3,3195.5,0.1444714]
[1768320093137,0.00308362,3197.7,3195.8,0.1444714]
[1768320093629,1.53211227,3197.7,3195.8,0.1444714]
[1768320094223,1.52902865,3197.3,3195.0,0.1444714]
[1768320094429,1.52902865,3197.6,3195.1,0.1444714]
[1768320094728,1.52902865,3197.2,3195.1,0.1444714]
[1768320095127,0.00308362,3197.7,3195.1,0.1444714]
[1768320095128,1.52902865,3196.8,3195.1,0.1444714]
[1768320095323,1.52902865,3196.4,3194.5,0.1590014]
[1768320095827,40.8,3197.2,3194.5,0.30506946]
[1768320096132,1.52902865,3196.8,3194.6,0.14606806]
[1768320097534,3.141,3196.7,3194.6,0.14606806]
[1768320097737,1.52902865,3196.0,3194.5,0.0023814]
[1768320098126,3.141,3196.0,3194.5,0.0023814]
[1768320098336,1.52902865,3195.6,3193.2,0.14606806]
[1768320098634,9.29755,3196.0,3192.6,0.14606806]
[1768320098635,1.52902865,3194.8,3192.6,0.14606806]
[1768320098844,3.141,3195.2,3192.6,0.14606806]
[1768320098845,1.52902865,3194.4,3192.6,0.14606806]
[1768320099035,1.52902865,3194.4,3191.9,0.14606806]
[1768320099332,0.00219182,3194.4,3192.3,0.14606806]
[1768320099525,0.00219182,3194.4,3192.4,0.15672]
[1768320099729,0.00219182,3194.4,3192.5,0.14606806]
[1768320101230,3.13519182,3194.4,3192.5,0.14606806]
[1768320101435,0.00219182,3194.4,3192.5,0.14606806]
[1768320102031,0.00219182,3194.4,3192.2,0.00259004]
[1768320102237,2.04212008,3194.0,3192.2,0.00259004]
[1768320102432,1.535,3193.9,3192.2,0.1486581]
[1768320102637,0.00219182,3194.4,3192.3,0.14606806]
[1768320102939,0.00219182,3194.4,3192.7,0.14606806]
[1768320103147,0.00219182,3194.4,3192.7,0.30277806]
[1768320103440,0.00219182,3194.4,3192.2,0.00259004]
[1768320103441,0.00219182,3194.4,3192.9,0.14606806]
[1768320103843,0.00219182,3194.4,3192.8,0.1567]
[1768320104037,0.00219182,3194.4,3192.3,0.14606806]
[1768320104239,0.00219182,3194.4,3192.5,0.14606806]
[1768320105429,0.00219182,3194.4,3192.6,0.30277806]
[1768320105634,0.00219182,3194.4,3192.7,0.14606806]
[1768320109339,1.535,3194.3,3192.8,0.14606806]
[1768320109548,0.00219182,3194.4,3193.0,0.14606806]
[1768320109951,0.00219182,3194.4,3193.1,0.14606806]
[1768320111239,0.00219182,3194.4,3193.1,0.30275806]
[1768320111453,0.00219182,3194.4,3193.2,0.14606806]
[1768320111743,0.529,3195.8,3193.5,0.14606806]
[1768320111945,43.941,3195.7,3193.5,0.14606806]
[1768320112345,2.04212008,3195.1,3193.5,0.14606806]
[1768320112547,3.141,3195.0,3193.5,0.14606806]
[1768320113138,0.00329791,3195.1,3193.5,0.14606806]
[1768320114143,3.141,3194.9,3193.5,0.14606806]
[1768320114745,3.141,3194.9,3192.6,0.14606806]
[1768320114948,3.141,3194.9,3192.8,0.14606806]
[1768320115344,3.141,3194.9,3192.9,0.14606806]
[1768320115643,7.809,3194.8,3193.1,0.14606806]
[1768320115845,0.00469615,3194.2,3193.1,0.14606806]
[1768320116952,0.00469615,3194.2,3192.5,0.14606806]
[1768320117256,0.16133615,3194.2,3192.2,0.00259004]
[1768320117448,3.141,3193.9,3192.2,0.00259004]
[1768320117642,3.141,3193.4,3192.2,0.00259004]
[1768320117842,2.04212008,3193.5,3191.9,1.0]
[1768320117843,3.141,3193.2,3191.9,1.0]
[1768320118045,3.141,3193.0,3191.9,1.0]
[1768320118751,3.141,3193.0,3191.9,1.00297321]
[1768320118948,9.141,3193.0,3191.9,1.00297321]
[1768320119147,3.141,3193.0,3191.9,0.00297321]
[1768320119351,3.141,3192.8,3191.3,0.14606806]
[1768320119551,3.141,3192.1,3189.7,1.53327835]
[1768320119755,7.81,3192.0,3189.7,1.53327835]
[1768320119949,9.34327835,3192.0,3189.4,1.53327835]
[1768320120146,9.34327835,3192.0,3189.6,0.15686]
[1768320120147,4.67427835,3192.0,3189.6,0.15686]
[1768320120448,0.00331739,3192.0,3189.6,1.53327835]
[1768320120650,3.141,3191.9,3190.0,1.53327835]
[1768320120849,0.00331739,3192.0,3189.4,0.00394805]
[1768320121053,0.047,3191.9,3190.1,0.15684]
[1768320121442,0.13898907,3191.8,3189.4,0.00394805]
[1768320121749,3.141,3191.7,3189.8,0.14606806]
[1768320121943,0.00331739,3192.0,3189.4,0.00394805]
[1768320121944,0.00331739,3192.0,3189.9,0.14606806]
[1768320122253,0.00331739,3192.0,3190.7,0.30287806]
[1768320122455,0.00331739,3192.0,3190.8,0.14606806]
[1768320123046,0.00331739,3192.0,3191.1,0.14606806]
[1768320123250,40.8,3193.4,3191.1,0.14606806]
[1768320123251,1.536,3192.9,3191.3,0.14606806]
[1768320123553,1.535,3193.4,3191.4,0.14606806]
[1768320124152,1.53896821,3193.4,3191.6,0.14606806]
[1768320124356,0.00396821,3193.4,3192.1,0.14606806]
[1768320124552,0.00396821,3193.4,3192.1,0.1496144]
[1768320125354,0.00396821,3193.4,3192.4,0.13194971]
[1768320126554,0.00396821,3193.4,3192.3,0.15673]
[1768320126757,2.04532789,3193.2,3191.2,0.13194971]
[1768320126958,4.67,3193.1,3191.2,0.13194971]
[1768320127157,4.67,3193.0,3191.2,0.13194971]
[1768320127458,1.535,3193.0,3191.2,0.13194971]
[1768320127849,0.00396821,3193.4,3191.3,0.13194971]
[1768320128049,7.811,3193.3,3191.3,0.13194971]
[1768320128753,1.535,3193.2,3191.3,0.13194971]
[1768320129057,3.141,3193.1,3191.3,0.13194971]
[1768320129258,4.331,3193.0,3191.3,0.13194971]
[1768320129456,3.141,3193.3,3191.3,0.13194971]
[1768320129646,3.141,3193.3,3191.4,0.13194971]
[1768320129853,0.00396821,3193.4,3191.5,0.28871971]
[1768320130154,4.67,3193.3,3191.5,0.28871971]
[1768320130354,7.811,3193.3,3191.2,0.00242324]
[1768320130554,3.141,3193.1,3191.2,0.00242324]
[1768320130755,0.1320323,3193.0,3191.2,0.00242324]
[1768320131347,3.141,3192.8,3191.2,0.00242324]
[1768320132053,6.0,3192.8,3191.2,0.00242324]
[1768320132260,4.673,3192.7,3191.2,0.00242324]
[1768320132454,0.1320323,3193.0,3191.2,0.00242324]
[1768320132757,4.674,3192.9,3191.2,0.00242324]
[1768320132960,0.1320323,3192.8,3191.2,0.00242324]
[1768320133158,3.141,3192.8,3191.2,0.00242324]
[1768320133351,0.1320323,3192.7,3189.9,0.15685]
[1768320133551,0.1320323,3192.5,3189.9,0.15685]
[1768320133857,4.677,3192.4,3190.2,0.13194971]
[1768320134158,0.1320323,3192.8,3190.2,0.13194971]
[1768320134351,7.818,3192.7,3190.2,0.13545579]
[1768320134855,0.1320323,3192.6,3190.6,0.15681]
[1768320135660,4.683,3192.5,3190.6,0.15681]
[1768320135858,7.818,3192.5,3190.6,0.15681]
[1768320136454,3.135,3192.4,3190.2,0.13545579]
[1768320136655,1.542,3192.3,3190.8,0.1568]
[1768320137158,1.542,3192.2,3190.8,0.1568]
[1768320137552,1.542,3192.1,3190.2,0.29228579]
[1768320137751,7.818,3192.1,3190.2,0.29228579]
[1768320138353,7.95126751,3192.1,3190.2,0.16033608]
[1768320138754,0.00469615,3191.5,3190.2,0.14344989]
[1768320138953,3.141,3192.5,3190.9,0.1568]
[1768320139156,1.541,3192.4,3191.2,0.15678]
[1768320139359,1.541,3192.3,3191.2,0.15678]
[1768320139561,1.541,3192.3,3190.8,0.00469615]
[1768320139761,3.141,3192.6,3190.8,0.00469615]
[1768320139958,3.141,3192.6,3190.8,0.30143996]
[1768320140259,1.541,3192.5,3190.8,0.30143996]
[1768320140961,4.677,3192.4,3190.8,0.30143996]
[1768320141258,1.541,3192.3,3190.8,0.30143996]
[1768320141660,4.682,3192.3,3190.8,0.16149615]
[1768320141874,4.677,3192.2,3190.8,0.16149615]
[1768320142159,4.677,3192.2,3190.2,0.14344989]
[1768320142367,0.13326751,3192.1,3190.2,0.16033608]
[1768320142664,7.818,3192.0,3190.2,0.16033608]
[1768320142861,4.87905236,3191.7,3189.6,0.29680381]
[1768320143059,0.13326751,3191.6,3189.6,0.15686]
[1768320143666,0.38153045,3191.6,3189.6,0.15686]
[1768320143868,3.27426751,3191.5,3189.6,0.15686]
[1768320144063,3.27426751,3191.5,3189.6,0.15919674]
[1768320144259,3.27426751,3191.5,3189.6,0.00233674]
[1768320144460,3.141,3191.3,3189.9,0.15685]
[1768320144970,3.141,3191.1,3189.6,0.00233674]
[1768320145263,3.27692186,3191.1,3189.6,0.00233674]
[1768320145568,3.27426751,3190.9,3188.7,0.15691]
[1768320145858,4.87905236,3190.6,3188.8,0.1569]
[1768320146059,1.542,3190.5,3189.3,0.15688]
[1768320146461,0.00265435,3191.1,3189.6,0.15686]
[1768320146661,1.543,3191.0,3189.6,0.15686]
[1768320146866,0.00265435,3191.1,3189.3,0.00251506]
[1768320147164,1.543,3190.9,3189.3,0.00251506]
[1768320147962,0.00265435,3191.1,3189.5,0.15687]
[1768320148468,0.00265435,3191.1,3189.3,0.00251506]
[1768320148661,1.54965435,3191.1,3189.3,0.14245887]
[1768320148866,0.00265435,3191.1,3189.3,0.14245887]
[1768320149060,0.00265435,3191.1,3190.1,0.15684]
[1768320149460,0.00469615,3190.5,3190.1,0.15684]
[1768320150062,0.00265435,3191.1,3190.1,0.15684]
[1768320150666,0.00265435,3191.1,3189.3,0.14245887]
[1768320150863,1.548,3191.0,3189.3,0.14245887]
[1768320151064,0.00265435,3191.1,3189.3,0.14245887]
[1768320151258,0.00265435,3191.1,3189.8,0.29679381]
[1768320151463,0.00265435,3191.1,3189.3,0.00251506]
[1768320151464,0.00265435,3191.1,3190.0,0.13994381]
[1768320151761,0.00265435,3191.1,3190.5,0.15682]
[1768320151963,3.137,3192.2,3190.8,0.1568]
[1768320152273,3.732,3192.2,3190.8,0.29674381]
[1768320152870,3.73592685,3192.2,3190.8,0.29674381]
[1768320153068,0.00392685,3192.2,3190.8,0.29674381]
[1768320153370,1.55392685,3192.2,3190.9,0.29674381]
[1768320153570,0.00392685,3192.2,3190.4,0.15682]
[1768320153873,3.141,3192.1,3190.3,0.13994381]
[1768320154264,3.141,3192.1,3189.8,0.15685]
[1768320154466,3.141,3192.1,3189.8,0.29679381]
[1768320155175,7.827,3192.0,3190.2,0.13263219]
[1768320155376,4.686,3192.0,3190.2,0.28946219]
[1768320156277,3.14492685,3192.2,3190.2,0.28946219]
[1768320156481,7.827,3192.1,3190.2,0.28946219]
[1768320157181,7.827,3192.1,3190.2,0.13263219]
[1768320157680,7.827,3192.1,3189.7,0.15686]
[1768320157681,3.141,3191.8,3189.7,0.15686]
[1768320158271,3.141,3191.8,3189.7,0.28949219]
[1768320158475,3.141,3191.8,3189.3,0.00251506]
[1768320158476,7.827,3191.7,3190.0,0.13263219]
[1768320158878,7.827,3191.7,3190.0,0.28947219]
[1768320159079,7.827,3191.7,3190.1,0.13263219]
[1768320160173,4.686,3191.7,3190.1,0.13263219]
[1768320161586,4.686,3191.7,3190.4,0.15682]
[1768320162083,4.686,3191.7,3190.1,0.13263219]
[1768320162289,7.827,3191.7,3190.1,0.13263219]
[1768320162777,7.827,3191.7,3189.9,0.15685]
[1768320162982,4.87905236,3191.3,3189.9,0.15685]
[1768320163186,4.87905236,3191.3,3189.3,0.13514725]
[1768320163485,45.67905236,3191.3,3189.3,0.13514725]
[1768320163970,0.20028358,3191.1,3189.3,0.00251506]
[1768320164174,3.34128358,3191.1,3189.3,0.00251506]
[1768320164375,3.141,3190.9,3189.3,0.00251506]
[1768320164772,0.19779473,3190.6,3188.0,2.71515326]
[1768320164976,3.141,3190.1,3188.3,0.13263219]
[1768320165178,4.693,3190.0,3188.3,0.13263219]
[1768320165575,0.04097473,3191.2,3188.4,0.13263219]
[1768320165780,3.141,3190.7,3188.6,0.28954219]
[1768320165974,3.141,3190.7,3188.7,0.13263219]
[1768320166180,1.552,3190.6,3189.1,0.28952219]
[1768320166584,4.693,3190.6,3189.1,0.13263219]
[1768320166776,4.693,3190.6,3188.5,0.28955219]
[1768320167281,4.693,3190.6,3188.6,0.13263219]
[1768320168386,1.552,3190.5,3188.7,0.13263219]
[1768320168886,4.693,3190.5,3188.7,0.13263219]
[1768320169582,4.693,3190.5,3188.4,0.00296275]
[1768320169583,4.87905236,3190.0,3188.4,0.00296275]
[1768320169781,3.141,3190.0,3188.4,0.00296275]
[1768320169978,1.552,3189.9,3188.4,0.13559494]
[1768320170284,0.00392049,3189.9,3188.9,0.1569]
[1768320170480,0.00392049,3189.9,3188.9,0.28953219]
[1768320170674,0.00469615,3189.5,3188.9,0.28953219]
[1768320171981,0.00469615,3189.5,3188.9,0.28953219]
[1768320172182,0.00469615,3189.5,3188.4,0.00296275]
[1768320172776,0.00469615,3189.5,3188.4,0.15988275]
[1768320173080,0.00392049,3189.9,3189.1,0.13263219]